Cogmind - Beta 10.2 *** ADVENTURER MODE // 2021.08.19 @ 14:47:10 Player: toastahs Result: Destroyed by Y-45 Defender with Beam Rifle Performance ------------- Evolutions (2) 1000 Regions Visited (5) 1000 Robots Destroyed (25) 125 Value Destroyed (606) 606 Prototype IDs (1) 20 Alien Tech Used (0) 0 Bonus (60) 60 TOTAL SCORE: 2811 Bonus ------- Follower Combat Kills 60 Cogmind --------- Core Integrity 0/550 Matter 270/300 Energy 32/100 System Corruption 0% Temperature Cool (9) Movement Core (50) Location -8/Storage Parts ------- > --- POWER (2) -------- (None) > --- PROPULSION (2) --- Flight Unit Cesium-ion Thruster > --- UTILITY (4) ------ (None) > --- WEAPON (3) ------- (None) > --- INVENTORY (4) ---- Airjet Cesium-ion Thruster Improved Heat Sink Large Storage Unit Peak State ------------ > --- POWER ------------ Improved Ion Engine Light Nuclear Core > --- PROPULSION ------- Armored Wheel Armored Wheel > --- UTILITY ---------- Small Storage Unit Experimental Sensor Array Signal Interpreter Core Shielding > --- WEAPON ----------- Light EM Pulse Cannon Light Assault Rifle > --- INVENTORY -------- Airjet Improved Heat Sink Large Storage Unit Light Assault Rifle Improved Datajack [Rating: 22] Favorites ----------- Power Light Ion Engine Engine Light Ion Engine Power Core Light Nuclear Core Propulsion Aluminum Leg Leg Aluminum Leg Wheel Armored Wheel Flight Unit Flight Unit Utility Small Storage Unit Device Experimental Sensor Array Storage Small Storage Unit Processor Signal Interpreter Protection Core Shielding Weapon Assault Rifle Energy Gun Spread Laser Energy Cannon Light EM Pulse Cannon Ballistic Gun Assault Rifle Launcher Rocket Launcher Slashing Weapon Mining Claw Special Melee Weapon Improved Datajack Build | -11 -10 -10 -9 -8 -8 ------- Run | Scr Mat Min Mat Mat Sto Slots Evolved 4 | . . . 2 2 . Power 1 | . . . . 1 . Propulsion . | . . . . . . Utility 2 | . . . 2 . . Weapon 1 | . . . . 1 . Parts Attached 33 | 6 3 2 14 2 6 Power 5 | 1 1 . 2 1 . Engine 3 | 1 1 . . 1 . Core 2 | . . . 2 . . Reactor . | . . . . . . Propulsion 11 | 2 1 1 4 . 3 Treads . | . . . . . . Leg 4 | 2 1 1 . . . Wheel 3 | . . . 3 . . Hover . | . . . . . . Flight 4 | . . . 1 . 3 Utility 6 | 1 1 . 3 1 . Device 2 | . . . 1 1 . Storage 2 | 1 . . 1 . . Processor 1 | . 1 . . . . Hackware . | . . . . . . Protection 1 | . . . 1 . . Artifact . | . . . . . . Weapon 11 | 2 . 1 5 . 3 Energy Gun 1 | . . . 1 . . Energy Cannon 1 | . . . 1 . . Ballistic Gun 5 | 2 . . 2 . 1 Ballistic Cannon . | . . . . . . Launcher 2 | . . 1 1 . . Special Weapon . | . . . . . . Impact Weapon . | . . . . . . Slashing Weapon 1 | . . . . . 1 Piercing Weapon . | . . . . . . Special Melee Weapon 1 | . . . . . 1 Unidentified Prototypes 1 | . . . 1 . . Parts Lost 20 | . 1 . 6 . 13 Power 3 | . 1 . . . 2 Propulsion 4 | . . . 2 . 2 Utility 4 | . . . . . 4 Weapon 9 | . . . 4 . 5 Highest Loss Streak 13 | . 1 . 4 . 13 Average Slot Usage (%) 78 | . 74 85 76 77 52 Engine 9 | . 14 13 . 1 4 Core 2 | . . . 9 9 2 Leg 13 | . 16 14 14 . . Wheel 1 | . . . 2 18 9 Device 2 | . . . 8 3 5 Storage 12 | . 14 14 8 9 7 Processor 10 | . 1 14 11 9 7 Protection 1 | . . . 5 9 2 Ballistic Gun 17 | . 28 19 11 9 4 Launcher 4 | . . 8 1 . . Naked Turns . | . . . . . . Heaviest Build 23 | 11 11 13 15 23 23 Greatest Support 24 | 20 20 20 24 24 24 Greatest Overweight (x) 2 | . 1 1 2 . 1 Average Overweight (x) . | . . . . . . Largest Inventory Capacity 6 | 6 6 6 6 6 6 Average Capacity 5 | 5 6 6 5 6 5 Most Carried 6 | 4 4 6 5 6 6 Average Carried 3 | 1 2 4 3 5 5 Final Capacity 6 | 6 6 6 6 6 4 Final Carried 6 | 1 3 5 5 6 4 Class Distribution -------------------- 73% | Mutant 26% | Scavenger-Mutant Dominant Class ---------------- Mutant | -10/Materials Mutant | -10/Mines Scavenger-Mutant | -9/Materials Scavenger-Mutant | -8/Materials Mutant | -8/Storage Resources | -11 -10 -10 -9 -8 -8 ----------- Run | Scr Mat Min Mat Mat Sto Matter Collected 654 | 216 179 66 181 . 12 Remotely . | . . . . . . Salvage Created 649 | . 248 51 288 . 62 Parts 52 | . 15 9 21 . 7 Haulers Intercepted . | . . . . . . Recyclers Shooed . | . . . . . . Parts Field Recycled . | . . . . . . Retrieved Matter . | . . . . . . Parts Self-Destructed . | . . . . . . Prevented . | . . . . . . Kills | -11 -10 -10 -9 -8 -8 ------- Run | Scr Mat Min Mat Mat Sto Combat Hostiles Destroyed 23 | . 9 3 9 . 2 Melee 2 | . . . . . 2 Guns 13 | . 9 3 1 . . Cannons 1 | . . . 1 . . AOE 7 | . . . 7 . . Classes Destroyed 5 | . 3 . 2 . . Watcher 2 | . 1 . 1 . . Swarmer 12 | . 5 3 3 . 1 Grunt 6 | . 4 . 2 . . Duelist 1 | . . . 1 . . Sentry 4 | . . . 3 . 1 Best Kill Streak 7 | . 7 3 4 . 2 Combat Bots Only 7 | . 7 3 4 . 2 Max Kills in Single Turn 3 | . 2 2 3 . 1 Gunslinging 1 | . 1 1 . . . Exploded 3 | . . . 3 . . Melee 1 | . . . . . 1 Uniques/NPCs Destroyed . | . . . . . . Combat | -11 -10 -10 -9 -8 -8 -------- Run | Scr Mat Min Mat Mat Sto Damage Taken 2368 | . 263 87 876 46 1096 Core 918 | . 66 25 267 10 550 Absorbed by Shields . | . . . . . . Core Remaining (%) 65 | 100 . 63 33 . . Volleys Fired 55 | . 20 6 22 . 7 Largest 2 | . 2 2 2 . 2 Hottest 76 | . 40 40 65 . 76 Shots Fired 94 | . 40 12 28 . 14 Gun 83 | . 40 12 21 . 10 Cannon 9 | . . . 5 . 4 Launcher 2 | . . . 2 . . Special . | . . . . . . Kinetic 80 | . 40 12 18 . 10 Thermal 3 | . . . 3 . . Explosive 2 | . . . 2 . . Electromagnetic 9 | . . . 5 . 4 Robot Hit Streak 20 | . 16 4 19 . 20 Robot Miss Streak 2 | . 2 1 1 . 2 Penetration Max . | . . . . . . Secondary Targets 5 | . 4 1 . . . Max Gunslinging Chain 1 | . 1 1 . . . Shots Hit Robots 78 | . 32 8 26 . 12 Core Hits 40 | . 14 3 19 . 4 Critical Hits . | . . . . . . Critical Kills . | . . . . . . Critical Parts Destroyed . | . . . . . . Melee Attacks 5 | . . . . . 5 Impact . | . . . . . . Slashing 5 | . . . . . 5 Piercing . | . . . . . . Sneak Attacks . | . . . . . . Combat Hostiles . | . . . . . . Follow-up Attacks . | . . . . . . Damage Inflicted 1277 | . 394 66 651 . 166 Guns 768 | . 394 66 251 . 57 Cannons 129 | . . . 93 . 36 Explosions 307 | . . . 307 . . Melee 73 | . . . . . 73 Ramming . | . . . . . . Kinetic 705 | . 394 66 188 . 57 Thermal 195 | . . . 195 . . Explosive 175 | . . . 175 . . Electromagnetic 129 | . . . 93 . 36 Impact . | . . . . . . Slashing 73 | . . . . . 73 Piercing . | . . . . . . Highest Corruption . | . . . . . . Average Corruption . | . . . . . . Corruption Purged . | . . . . . . Overload Shots . | . . . . . . Overflow Damage 12 | . . . 11 . 1 Projectiles 1 | . . . . . 1 Explosions 11 | . . . 11 . . Melee . | . . . . . . Knockbacks . | . . . . . . Impact . | . . . . . . Kinetic . | . . . . . . Secondary . | . . . . . . Self-Inflicted Damage 39 | . . . 39 . . Shots 2 | . . . 2 . . Rammed . | . . . . . . Targets Rammed . | . . . . . . Kicked . | . . . . . . Crushed . | . . . . . . Highest Temperature 126 | . 8 . 68 . 126 Average Temperature 42 | . 3 . 27 . 68 Received Heat Transfer 597 | . 129 . 117 18 333 Siege Activations . | . . . . . . Robots Corrupted . | . . . . . . Combat Hostiles . | . . . . . . Parts Fried . | . . . . . . Impact Corruptions . | . . . . . . Robots Melted . | . . . . . . Combat Hostiles . | . . . . . . Parts Melted . | . . . . . . Heat Transferred 235 | . . . 235 . . Parts Sabotaged . | . . . . . . Parts Stolen . | . . . . . . Parts Stripped . | . . . . . . Power Chain Reactions 1 | . . . 1 . . Missiles Intercepted . | . . . . . . Alert | -11 -10 -10 -9 -8 -8 ------- Run | Scr Mat Min Mat Mat Sto Peak Influence 261 | . 242 149 261 111 69 Initial 93 | . . 79 . 93 39 Average 99 | . 178 74 126 96 39 Maximum Alert Level 1 | . 1 . 1 . . Low Security (%) 91 | 100 60 100 89 100 100 Level 1 8 | . 39 . 10 . . Level 2 . | . . . . . . Level 3 . | . . . . . . Level 4 . | . . . . . . Level 5 . | . . . . . . High Security . | . . . . . . Max Security . | . . . . . . Squads Dispatched 2 | . . . 1 1 . Investigation . | . . . . . . Extermination . | . . . . . . Reinforcement 2 | . . . 1 1 . Assault . | . . . . . . Garrison . | . . . . . . Intercept . | . . . . . . Construction Impeded . | . . . . . . Haulers Reinforced . | . . . . . . Stealth | -11 -10 -10 -9 -8 -8 --------- Run | Scr Mat Min Mat Mat Sto Distress Signals 3 | . 1 . 1 . 1 Communications Jammed . | . . . . . . Distress Signals . | . . . . . . Times Spotted 50 | . 15 5 13 2 15 Peak Tracking Total 11 | . 8 3 5 5 11 Tactical Retreats 4 | . . . 2 . 2 Traps | -11 -10 -10 -9 -8 -8 ------- Run | Scr Mat Min Mat Mat Sto Traps Triggered 1 | . 1 . . . . Indirectly . | . . . . . . Trap Hack Attempts . | . . . . . . Triggered . | . . . . . . Disarmed . | . . . . . . Reprogrammed . | . . . . . . Reused . | . . . . . . Traps Extracted . | . . . . . . Installed . | . . . . . . Triggered . | . . . . . . Machines | -11 -10 -10 -9 -8 -8 ---------- Run | Scr Mat Min Mat Mat Sto Machines Disabled 1 | . . . 1 . . Max in Single Turn 1 | . . . 1 . . Garrison Access 1 | . . . . 1 . Machines Sabotaged . | . . . . . . Garrisons Compromised . | . . . . . . Overloaded Fab Kills . | . . . . . . Fab Network Shutdowns . | . . . . . . Hacking | -11 -10 -10 -9 -8 -8 --------- Run | Scr Mat Min Mat Mat Sto Machines Accessed 2 | . . . . 2 . Terminals 1 | . . . . 1 . Fabricators . | . . . . . . Repair Stations . | . . . . . . Recycling Units . | . . . . . . Scanalyzers . | . . . . . . Garrison Access 1 | . . . . 1 . Total Hacks 2 | . . . . 2 . Successful 2 | . . . . 2 . Failed . | . . . . . . Catastrophic . | . . . . . . Database Lockouts . | . . . . . . Manual . | . . . . . . Terminals 1 | . . . . 1 . Fabricators . | . . . . . . Repair Stations . | . . . . . . Recycling Units . | . . . . . . Scanalyzers . | . . . . . . Garrison Access 1 | . . . . 1 . Terminal Hacks 1 | . . . . 1 . Emergency Access Points 1 | . . . . 1 . Fabricator Hacks . | . . . . . . Repair Station Hacks . | . . . . . . Recycling Unit Hacks . | . . . . . . Scanalyzer . | . . . . . . Garrison Access Hacks 1 | . . . . 1 . Seal Access 1 | . . . . 1 . Unauthorized Hacks . | . . . . . . Terminals . | . . . . . . Fabricators . | . . . . . . Repair Stations . | . . . . . . Recycling Units . | . . . . . . Scanalyzers . | . . . . . . Garrison Access . | . . . . . . Data Cores Recovered . | . . . . . . Used . | . . . . . . Hacking Detections . | . . . . . . Full Trace Events . | . . . . . . Feedback Events . | . . . . . . Feedback Blocked . | . . . . . . Robot Schematics Acquired . | . . . . . . Robots Built . | . . . . . . Matter . | . . . . . . Time . | . . . . . . Total Robot Build Rating . | . . . . . . Part Schematics Acquired . | . . . . . . Parts Built . | . . . . . . Matter . | . . . . . . Time . | . . . . . . Total Part Build Rating . | . . . . . . Parts Repaired . | . . . . . . Time . | . . . . . . Parts Recycled . | . . . . . . Recycled Matter . | . . . . . . Retrieved Matter . | . . . . . . Retrieved Components . | . . . . . . Parts Scanalyzed . | . . . . . . Part Schematics Acquired . | . . . . . . Parts Damaged . | . . . . . . Bothacking | -11 -10 -10 -9 -8 -8 ------------ Run | Scr Mat Min Mat Mat Sto Used RIF Installer . | . . . . . . Robots Hacked . | . . . . . . Non-combat . | . . . . . . Combat . | . . . . . . Robot Hacks Applied . | . . . . . . Relay Couplers Released . | . . . . . . Robots Rewired . | . . . . . . Allies Hacked . | . . . . . . Hacks Repelled . | . . . . . . Allies | -11 -10 -10 -9 -8 -8 -------- Run | Scr Mat Min Mat Mat Sto Total Allies 3 | . . 3 . . . Largest Group 3 | . . 3 1 . . Highest-Rated Group 40 | . . 40 8 . . Highest-Rated Ally 16 | . . 16 8 . . Total Orders . | . . . . . . Ally Attacks 17 | . . 12 5 . . Total Damage 200 | . . 158 42 . . Kills 2 | . . 2 . . . Allies Corrupted . | . . . . . . Allies Melted . | . . . . . . Intel | -11 -10 -10 -9 -8 -8 ------- Run | Scr Mat Min Mat Mat Sto Robot Analysis Total . | . . . . . . Derelict Logs Recovered 1 | . . 1 . . . Drone Launches . | . . . . . . Drone Recoveries . | . . . . . . Exploration | -11 -10 -10 -9 -8 -8 ------------- Run | Scr Mat Min Mat Mat Sto Turns Passed 1649 | 53 277 805 349 70 95 Spaces Moved 1091 | 41 143 523 240 73 71 Core 23 | 12 . . . . 11 Treads . | . . . . . . Legs 852 | 29 143 523 157 . . Wheels 141 | . . . 26 73 42 Hover . | . . . . . . Flight 75 | . . . 57 . 18 Fastest Speed 37 | 50 120 120 40 90 37 Average Speed 127 | 99 146 148 104 90 71 Slowest Speed 200 | 120 150 150 200 90 100 Overloaded Moves . | . . . . . . Propulsion Burnouts . | . . . . . . Robots Hopped 2 | . . . . . 2 Cave-ins Triggered . | . . . . . . Exploration Rate (%) 31 | 3 33 97 25 11 19 Regions Visited 5 Branch Regions 2 Pre-discovered Areas 1 | . . 1 . . . Known Exits Taken 4 | . 1 1 1 1 . Unknown Exits Taken 1 | 1 . . . . . Scrap Searched 2 | . . 2 . . . Spaces Dug . | . . . . . . Terrain Destroyed 17 | . . . 17 . . Melee . | . . . . . . Projectile . | . . . . . . AOE 17 | . . . 17 . . Terrain Rammed . | . . . . . . Walls Destroyed . | . . . . . . Machines Disabled . | . . . . . . Actions | -11 -10 -10 -9 -8 -8 --------- Run | Scr Mat Min Mat Mat Sto Total 1239 | 52 172 538 309 77 91 Wait 28 | . . 4 24 . . Move 1082 | 40 142 522 239 72 67 Hop 2 | . . . . . 2 Pick Up 25 | 6 5 3 6 3 2 Fast Attach 9 | 1 . . 5 . 3 Attach 21 | 5 3 1 8 2 2 Detach 2 | . . . 2 . . Swap 3 | . . 1 1 . 1 Drop 7 | . 2 1 2 . 2 Fire 55 | . 20 6 22 . 7 Melee 5 | . . . . . 5 Ram . | . . . . . . Kick . | . . . . . . Crush . | . . . . . . Escape Stasis . | . . . . . . Rewire . | . . . . . . Trap . | . . . . . . Miscellaneous . | . . . . . . Route ------- -11/Scrapyard -10/Materials -10/Mines (discovered 2 exits: *Mat x2) -9/Materials -8/Materials -8/Storage History --------- Turn | Location | Event 2 | -11/Scrapyard | Met Revision 17 4 | -11/Scrapyard | Discovered new exit (range 16) 54 | -11/Scrapyard | Entered Materials 119 | -10/Materials | Destroyed 7 combat bots 299 | -10/Materials | Discovered new exit (range 8) 306 | -10/Materials | Build established: Mutant 313 | -10/Materials | Identified exit to Mines 331 | -10/Materials | Entered Mines 430 | -10/Mines | Learned location of Zion (-7) 452 | -10/Mines | Met a Derelict bent on vengeance 463 | -10/Mines | Assisted by bots powering up and referring to "LRC-V3" 635 | -10/Mines | Received a Rocket Launcher from a helpful Derelict 671 | -10/Mines | Discovered new exit (range 13) 690 | -10/Mines | Identified exit to Materials 776 | -10/Mines | Found a damaged Exp. Sensor Array with a note attached 779 | -10/Mines | Found Prototype Device 837 | -10/Mines | Discovered exit to Materials (range 11) 1136 | -10/Mines | Entered Materials 1136 | -9/Materials | Accompanied by 1 ally 1136 | -9/Materials | Evolved 2 slots: Utility x2 1136 | -9/Materials | Identified Exp. Sensor Array 1365 | -9/Materials | Lost 4 parts (1n3w) 1430 | -9/Materials | Discovered new exit (range 16) 1432 | -9/Materials | Core integrity fell below 50% 1484 | -9/Materials | Identified exit to Materials 1485 | -9/Materials | Entered another Materials area 1485 | -8/Materials | Evolved 2 slots: Power x1, Weapon x1 1498 | -8/Materials | Build established: Scavenger-Mutant 1550 | -8/Materials | Discovered new exit (range 7) 1554 | -8/Materials | Identified exit to Storage 1555 | -8/Materials | Entered Storage 1623 | -8/Storage | Core integrity fell below 50% 1637 | -8/Storage | Core integrity fell below 20% 1650 | -8/Storage | Destroyed by Y-45 Defender with Beam Rifle Last Messages --------------- Exp. Sensor Array destroyed. S-10 Pest destroyed. Arm. Wheel destroyed. Acquired 12 matter. S-10 Pest Flight Unit ripped off. S-10 Pest Lgt. Assault Rifle severed. Y-45 Defender destroyed. Mining Claw destroyed. Sml. Storage Unit destroyed. Acquired Imp. Datajack. Signal Interpreter destroyed. Acquired Flight Unit. Imp. Datajack destroyed. Acquired Flight Unit. K-01 Serf destroyed. K-01 Serf collects debris. R-06 Scavenger collects Lgt. Ion Engine. Dropped Flight Unit. Acquired Cesium-ion Thruster. R-06 Scavenger collects Sml. Matter Pod. Map ----- +----------------------------------------------------+ | ?????????????????????????????????????????????????? | | ?????????????????????????????????????????????????? | | ?????????????????????????????????????????????????? | | ????????????????????????? ?????????????????????? | | ????????????????????????? #????????????????????? | | ????????????????????????? #????????????????????? | | ????????????????????????? #????????????????????? | | ????????????????????????? #????????????????????? | | ????????????????????????? +????????????????????? | | ????????????????????????# #????????????????????? | | ??????????#?????????????# #????????????????????? | | ??????????# ????????????# #????????????????????? | | ???????????? ?????###??# #??????##????????????? | | ???????????###+##### #### #?????## ##??????????? | | ???????????? + # #?????# ??????????? | | ???????????????# [[ # #?????? ????#???? | | ???????????????# /!!%!# #?????? ""? ## | | ???????????????# ! [[# #??????? """ ?# """" | | ???????????????# !/ #??????? """ ?# """" | | ???????????????# """ "# #????????" """??# """" | | ???????????????# """ T#g #???????? """??# """" | | ???????????????# """ "# #????????? ???# | | ???????????????# # #????????? ???# | | ????????????# ########## ###########+#########+ | | ????????????# b gY%r Y sw | | ????????????# @ | | ????????????#############Y | | ??????????????????????#####s###################### | | ??????????????????????# #????????????????? | | ??????????????????????# "T" [=! ##???????????????? | | ??????????????????????# """ [! #???????????????? | | ??????????????????????# = ! ##???????????????? | | ??????????????????????###########????????????????? | | | | | | | | | | | | | | | | | | | | | | | | | | | | | | | | | | | +----------------------------------------------------+ Best States ------------- Heat Dissipation 31 Energy Generation 21 Energy Capacity 325 Matter Stores 300 Matter Capacity 300 Sight Range 16 Robot Scan Range 30 Terrain Scan Density 10 Resistance: KI 20 Resistance: TH 20 Resistance: EX 20 Resistance: EM 20 Resistance: I 20 Resistance: S 20 Resistance: P 20 Core Shielding 20 Evasion (%) 62 Offensive Hacking 10 Item Schematics ----------------- None Robot Schematics ------------------ None Fabricated ------------ Nothing Alien Tech Used ----------------- None Achievements -------------- None Challenges ------------ None Game ------ Seed HardlightHardlightShifter Manual? 0 Play Time 00:23:33 Cumulative 23.5 hours Start 2021.08.19 @ 02:10:06 End 2021.08.19 @ 14:47:10 Sessions 1 Manual Loads 0 Difficulty Adventurer Special Mode None Game No. 27 Rogue 21 Adventurer 6 Explorer 0 Win Type - Total 0 Types 0/0/0/0/0/0/0/0/0 Lore% 31 Gallery% 39 Achievement% 29 Wizard Run 0 Options --------- ASCII 0 Keyboard 0 Movement Mouse Keybinds 0 Fullscreen 1 Font 18/SmallcapsGlow Map View 76x50 Tactical HUD 0 Map Filters NONE Filters NONE Steam 1 RUN: ff5ce7f5-098a-4205-94de-fb32c50f9765